lending/lending_fUSD_20250621
["ID","MTS","AMOUNT","RATE_DAILY","PERIOD"]
[366809869,1750467072881,-151.0,0.00026027,7]
[366809870,1750467072890,-151.0,0.00026027,7]
[366809871,1750467072900,-206.24513,0.00026027,7]
[366809872,1750467072909,-206.24513,0.00026027,7]
[366809873,1750467072919,-161.678187,0.00026027,7]
[366809874,1750467072929,-251.810328,0.00026027,7]
[366809875,1750467072938,-490.0,0.00026027,4]
[366809876,1750467072947,-231.764256,0.00026027,7]
[366809877,1750467072957,-231.764256,0.00026027,7]
[366809878,1750467072966,-151.0,0.00026027,7]
[366809879,1750467072976,-466.108384,0.00026027,7]
[366809880,1750467072985,-466.108384,0.00026027,7]
[366809881,1750467072995,-227.006127,0.00026027,7]
[366809882,1750467073006,-227.006127,0.00026027,7]
[366809883,1750467073015,-155.886971,0.00026027,7]
[366809884,1750467073025,-155.886971,0.00026027,7]
[366809885,1750467073035,-490.0,0.00026027,4]
[366809886,1750467073045,-490.0,0.00026027,4]
[366809887,1750467073055,-490.0,0.00026027,4]
[366809888,1750467073065,-490.0,0.00026027,4]
[366809889,1750467073075,-490.0,0.00026027,4]
[366809890,1750467073085,-208.756452,0.00026027,7]
[366809891,1750467073095,-490.0,0.00026027,4]
[366809892,1750467073106,-303.158107,0.00026027,7]
[366809893,1750467073116,-208.756452,0.00026027,7]
[366809894,1750467073126,-490.0,0.00026027,4]
[366809895,1750467073135,-490.0,0.00026027,4]
[366809896,1750467073146,-490.0,0.00026027,4]
[366809897,1750467073157,-490.0,0.00026027,4]
[366809898,1750467073167,-490.0,0.00026027,4]
[366809899,1750467073177,-490.0,0.00026027,4]
[366809900,1750467073187,-490.0,0.00026027,4]
[366809901,1750467073197,-490.0,0.00026027,4]
[366809902,1750467073207,-490.0,0.00026027,4]
[366809903,1750467073218,-561.4,0.00026027,4]
[366809904,1750467073228,-490.0,0.00026027,4]
[366809905,1750467073238,-490.0,0.00026027,4]
[366809906,1750467073247,-490.0,0.00026027,4]
[366809907,1750467073257,-499.03,0.00026027,4]
[366809908,1750467073266,-490.0,0.00026027,4]
[366809909,1750467073276,-490.0,0.00026027,4]
[366809910,1750467073286,-490.0,0.00026027,4]
[366809911,1750467073299,-490.0,0.00026027,4]
[366809912,1750467073309,-490.0,0.00026027,4]
[366809913,1750467073318,-185.856239,0.00026027,7]
[366809914,1750467073328,-490.0,0.00026027,4]
[366809915,1750467073338,-490.0,0.00026027,4]
[366809916,1750467073348,-490.0,0.00026027,4]
[366809917,1750467073358,-490.0,0.00026027,4]
[366809918,1750467073368,-490.0,0.00026027,4]
[366809919,1750467073378,-490.0,0.00026027,4]
[366809920,1750467073388,-566.3,0.00026027,4]
[366809921,1750467073398,-429.53922749,0.00026027,4]
[366809922,1750467073408,-490.0,0.00026027,4]
[366809923,1750467073418,-532.03,0.00026027,4]
[366809924,1750467073428,-490.0,0.00026027,4]
[366809925,1750467073438,-490.0,0.00026027,4]
[366809926,1750467073448,-490.0,0.00026027,4]
[366809927,1750467073458,-490.0,0.00026027,4]
[366809928,1750467073468,-490.0,0.00026027,4]
[366809929,1750467073478,-490.0,0.00026027,4]
[366809930,1750467073488,-490.0,0.00026027,4]
[366809931,1750467073498,-490.0,0.00026027,4]
[366809932,1750467073507,-490.0,0.00026027,4]
[366809933,1750467073517,-490.0,0.00026027,4]
[366809934,1750467073527,-640.8,0.00026027,4]
[366809935,1750467073537,-490.0,0.00026027,4]
[366809936,1750467073547,-490.0,0.00026027,4]
[366809937,1750467073557,-490.0,0.00026027,4]
[366809938,1750467073567,-490.0,0.00026027,4]
[366809939,1750467073576,-490.0,0.00026027,4]
[366809940,1750467073586,-490.0,0.00026027,4]
[366809941,1750467073596,-490.0,0.00026027,4]
[366809942,1750467073605,-490.0,0.00026027,4]
[366809943,1750467073615,-991.7,0.00026027,4]
[366809944,1750467073625,-490.0,0.00026027,4]
[366809945,1750467073635,-490.0,0.00026027,4]
[366809946,1750467073644,-490.0,0.00026027,4]
[366809947,1750467073654,-490.0,0.00026027,4]
[366809948,1750467073664,-490.0,0.00026027,4]
[366809949,1750467073674,-506.13,0.00026027,4]
[366809950,1750467073684,-490.0,0.00026027,4]
[366809951,1750467073693,-490.0,0.00026027,4]
[366809952,1750467073704,-534.54449514,0.00026027,4]
[366809953,1750467073714,-522.96086902,0.00026027,4]
[366809954,1750467073723,-490.0,0.00026027,4]
[366809955,1750467073733,-490.0,0.00026027,4]
[366809956,1750467073743,-490.0,0.00026027,4]
[366809957,1750467073753,-490.0,0.00026027,4]
[366809958,1750467073764,-490.0,0.00026027,4]
[366809959,1750467073773,-588.04246383,0.00026027,4]
[366809960,1750467073783,-490.0,0.00026027,4]
[366809961,1750467073794,-490.0,0.00026027,4]
[366809962,1750467073804,-490.0,0.00026027,4]
[366809963,1750467073814,-490.0,0.00026027,4]
[366809964,1750467073824,-490.0,0.00026027,4]
[366809965,1750467073833,-490.0,0.00026027,4]
[366809966,1750467073843,-569.52,0.00026027,4]
[366809967,1750467073852,-490.0,0.00026027,4]
[366809968,1750467073862,-490.0,0.00026027,4]
[366809969,1750467073871,-490.0,0.00026027,4]
[366809970,1750467073881,-490.0,0.00026027,4]
[366809971,1750467073891,-490.0,0.00026027,4]
[366809972,1750467073901,-490.0,0.00026027,4]
[366809973,1750467073911,-490.0,0.00026027,4]
[366809974,1750467073920,-828.07,0.00026027,4]
[366809975,1750467073929,-490.0,0.00026027,4]
[366809976,1750467073939,-216.33,0.00026027,4]
[366809977,1750467073948,-490.0,0.00026027,4]
[366809978,1750467073958,-490.0,0.00026027,4]
[366809979,1750467073968,-490.0,0.00026027,4]
[366809980,1750467073978,-490.0,0.00026027,4]
[366809981,1750467073987,-490.0,0.00026027,4]
[366809982,1750467073997,-490.0,0.00026027,4]
[366809983,1750467074007,-490.0,0.00026027,4]
[366809984,1750467074016,-490.0,0.00026027,4]
[366809985,1750467074027,-490.0,0.00026027,4]
[366809986,1750467074036,-490.0,0.00026027,4]
[366809987,1750467074045,-511.20875945,0.00026027,4]
[366809988,1750467074055,-490.0,0.00026027,4]
[366809989,1750467074065,-490.0,0.00026027,4]
[366809990,1750467074075,-490.0,0.00026027,4]
[366809991,1750467074085,-490.0,0.00026027,4]
[366809992,1750467074094,-490.0,0.00026027,4]
[366809993,1750467074104,-490.0,0.00026027,4]
[366809994,1750467074114,-544.41,0.00026027,4]
[366809995,1750467074123,-454.69882143,0.00026027,4]
[366809996,1750467074133,-529.54,0.00026027,4]
[366809997,1750467074142,-490.0,0.00026027,4]
[366809998,1750467074152,-420.0,0.00026027,4]
[366809999,1750467074162,-490.0,0.00026027,4]
[366810000,1750467074172,-490.0,0.00026027,4]
[366810001,1750467074182,-627.92,0.00026027,4]
[366810002,1750467074192,-490.0,0.00026027,4]
[366810003,1750467074201,-490.0,0.00026027,4]
[366810004,1750467074211,-490.0,0.00026027,4]
[366810005,1750467074222,-490.0,0.00026027,4]
[366810006,1750467074231,-490.0,0.00026027,4]
[366810007,1750467074241,-536.06893777,0.00026027,4]
[366810008,1750467074251,-490.0,0.00026027,4]
[366810009,1750467074261,-490.0,0.00026027,4]
[366810010,1750467074272,-490.0,0.00026027,4]
[366810011,1750467074282,-222.32148223,0.00026027,4]
[366810012,1750467074295,-454.7,0.00026027,4]
[366810013,1750467074304,-490.0,0.00026027,4]
[366810014,1750467074314,-490.0,0.00026027,4]
[366810015,1750467074324,-490.0,0.00026027,4]
[366810016,1750467074335,-490.0,0.00026027,4]
[366810017,1750467074345,-490.0,0.00026027,4]
[366810018,1750467074356,-226.29750444,0.00026027,4]
[366810019,1750467074366,-638.18,0.00026027,4]
[366810020,1750467074376,-490.0,0.00026027,4]
[366810021,1750467074386,-490.0,0.00026027,4]
[366810022,1750467074395,-490.0,0.00026027,4]
[366810023,1750467074405,-490.0,0.00026027,4]
[366810024,1750467074415,-518.34,0.00026027,4]
[366810025,1750467074424,-490.0,0.00026027,4]
[366810026,1750467074436,-490.0,0.00026027,4]
[366810027,1750467074446,-490.0,0.00026027,4]
[366810028,1750467074455,-490.0,0.00026027,4]
[366810029,1750467074465,-490.0,0.00026027,4]
[366810030,1750467074474,-490.0,0.00026027,4]
[366810031,1750467074484,-490.0,0.00026027,4]
[366810032,1750467074494,-490.0,0.00026027,4]
[366810033,1750467074503,-572.72,0.00026027,4]
[366810034,1750467074514,-490.0,0.00026027,4]
[366810035,1750467074524,-490.0,0.00026027,4]
[366810036,1750467074534,-490.0,0.00026027,4]
[366810037,1750467074543,-490.0,0.00026027,4]
[366810038,1750467074553,-490.0,0.00026027,4]
[366810039,1750467074562,-435.96595926,0.00026027,4]
[366810040,1750467074571,-490.0,0.00026027,4]
[366810041,1750467074581,-490.0,0.00026027,4]
[366810042,1750467074591,-224.63391181,0.00026027,4]
[366810043,1750467074601,-490.0,0.00026027,4]
[366810044,1750467074611,-250.0,0.00026027,4]
[366810045,1750467074621,-490.0,0.00026027,4]
[366810046,1750467074631,-490.0,0.00026027,4]
[366810047,1750467074641,-490.0,0.00026027,4]
[366810048,1750467074651,-490.0,0.00026027,4]
[366810049,1750467074661,-490.0,0.00026027,4]
[366810050,1750467074671,-693.05,0.00026027,4]
[366810051,1750467074682,-679.07,0.00026027,4]
[366810052,1750467074691,-490.0,0.00026027,4]
[366810053,1750467074701,-490.0,0.00026027,4]
[366810054,1750467074712,-490.0,0.00026027,4]
[366810055,1750467074722,-600.5,0.00026027,4]
[366810056,1750467074732,-490.0,0.00026027,4]
[366810057,1750467074743,-845.06,0.00026027,4]
[366810058,1750467074752,-490.0,0.00026027,4]
[366810059,1750467074762,-501.35,0.00026027,4]
[366810060,1750467074773,-490.0,0.00026027,4]
[366810061,1750467074783,-490.0,0.00026027,4]
[366810062,1750467074793,-490.0,0.00026027,4]
[366810063,1750467074803,-490.0,0.00026027,4]
[366810064,1750467074813,-490.0,0.00026027,4]
[366810065,1750467074823,-1011.08,0.00026027,4]
[366810066,1750467074833,-490.0,0.00026027,4]
[366810067,1750467074843,-490.0,0.00026027,4]
[366810068,1750467074852,-1710.27,0.00026027,4]
[366810069,1750467074862,-490.0,0.00026027,4]
[366810070,1750467074871,-490.0,0.00026027,4]
[366810071,1750467074881,-294.32,0.00026027,4]
[366810072,1750467074891,-490.0,0.00026027,4]
[366810073,1750467074901,-490.0,0.00026027,4]
[366810074,1750467074911,-490.0,0.00026027,4]
[366810075,1750467074921,-490.0,0.00026027,4]
[366810076,1750467074932,-626.38037357,0.00026027,4]
[366810077,1750467074942,-490.0,0.00026027,4]
[366810078,1750467074954,-490.0,0.00026027,4]
[366810079,1750467074964,-675.57,0.00026027,4]
[366810080,1750467074973,-573.37,0.00026027,4]
[366810081,1750467074984,-490.0,0.00026027,4]
[366810082,1750467074993,-1566.91,0.00026027,4]
[366810083,1750467075003,-490.0,0.00026027,4]
[366810084,1750467075012,-490.0,0.00026027,4]
[366810085,1750467075022,-490.0,0.00026027,4]
[366810086,1750467075032,-490.0,0.00026027,4]
[366810087,1750467075041,-490.0,0.00026027,4]
[366810088,1750467075051,-573.81,0.00026027,4]
[366810089,1750467075060,-490.0,0.00026027,4]
[366810090,1750467075070,-3259.78,0.00026027,4]
[366810091,1750467075080,-490.0,0.00026027,4]
[366810092,1750467075090,-490.0,0.00026027,4]
[366810093,1750467075099,-490.0,0.00026027,4]
[366810094,1750467075109,-490.0,0.00026027,4]
[366810095,1750467075118,-1017.95,0.00026027,4]
[366810096,1750467075128,-648.85,0.00026027,4]
[366810097,1750467075137,-490.0,0.00026027,4]
[366810098,1750467075147,-490.0,0.00026027,4]
[366810099,1750467075156,-490.0,0.00026027,4]
[366810100,1750467075165,-490.0,0.00026027,4]
[366810101,1750467075175,-1010.41,0.00026027,4]
[366810102,1750467075185,-838.54,0.00026027,4]
[366810103,1750467075194,-561.12,0.00026027,4]
[366810104,1750467075204,-557.77192851,0.00026027,4]
[366810105,1750467075213,-490.0,0.00026027,4]
[366810106,1750467075222,-490.0,0.00026027,4]
[366810107,1750467075231,-490.0,0.00026027,4]
[366810108,1750467075240,-490.0,0.00026027,4]
[366810109,1750467075250,-490.0,0.00026027,4]
[366810110,1750467075260,-290.46,0.00026027,4]
[366810111,1750467075269,-490.0,0.00026027,4]
[366810112,1750467075283,-490.0,0.00026027,4]
[366810113,1750467075295,-490.0,0.00026027,4]
[366810114,1750467075305,-7664.92,0.00026027,4]
[366810115,1750467075315,-490.0,0.00026027,4]
[366810116,1750467075325,-535.72,0.00026027,4]
[366810117,1750467075335,-490.0,0.00026027,4]
[366810118,1750467075344,-643.42,0.00026027,4]
[366810119,1750467075354,-490.0,0.00026027,4]
[366810120,1750467075363,-490.0,0.00026027,4]
[366810121,1750467075373,-490.0,0.00026027,4]
[366810122,1750467075383,-490.0,0.00026027,4]
[366810123,1750467075394,-740.37,0.00026027,4]
[366810124,1750467075403,-666.48,0.00026027,4]
[366810125,1750467075413,-1402.81,0.00026027,4]
[366810126,1750467075423,-1928.49,0.00026027,4]
[366810127,1750467075432,-490.0,0.00026027,4]
[366810128,1750467075442,-490.0,0.00026027,4]
[366810129,1750467075451,-490.0,0.00026027,4]
[366810130,1750467075461,-490.0,0.00026027,4]
[366810131,1750467075470,-875.93,0.00026027,4]
[366810132,1750467075480,-490.0,0.00026027,4]
[366810133,1750467075490,-490.0,0.00026027,4]
[366810134,1750467075499,-575.61,0.00026027,4]
[366810135,1750467075509,-2680.72,0.00026027,4]
[366810136,1750467075519,-490.0,0.00026027,4]
[366810137,1750467075530,-1148.65,0.00026027,4]
[366810138,1750467075539,-499.47,0.00026027,4]
[366810139,1750467075549,-490.0,0.00026027,4]
[366810140,1750467075558,-585.26,0.00026027,4]
[366810141,1750467075567,-506.05,0.00026027,4]
[366810142,1750467075577,-490.0,0.00026027,4]
[366810143,1750467075586,-755.96,0.00026027,4]
[366810144,1750467075595,-490.0,0.00026027,4]
[366810145,1750467075605,-5788.94,0.00026027,4]
[366810146,1750467075614,-490.0,0.00026027,4]
[366810147,1750467075624,-979.05,0.00026027,4]
[366810148,1750467075634,-1714.67,0.00026027,4]
[366810149,1750467075644,-1056.73,0.00026027,4]
[366810150,1750467075654,-703.48,0.00026027,4]
[366810151,1750467075663,-267.7,0.00026027,4]
[366810152,1750467075673,-490.0,0.00026027,4]
[366810153,1750467075683,-490.0,0.00026027,4]
[366810154,1750467075692,-490.0,0.00026027,4]
[366810155,1750467075702,-490.0,0.00026027,4]
[366810156,1750467075712,-1389.72,0.00026027,4]
[366810157,1750467075722,-388.21101306,0.00026027,4]
[366810158,1750467075731,-490.0,0.00026027,4]
[366810159,1750467075740,-490.0,0.00026027,4]
[366810160,1750467075750,-490.0,0.00026027,4]
[366810161,1750467075759,-490.0,0.00026027,4]
[366810162,1750467075769,-490.0,0.00026027,4]
[366810163,1750467075779,-181.83229045,0.00026027,4]
[366810164,1750467075789,-778.17,0.00026027,4]
[366810165,1750467075800,-1748.79,0.00026027,4]
[366810166,1750467075810,-490.0,0.00026027,4]
[366810167,1750467075819,-490.0,0.00026027,4]
[366810168,1750467075829,-567.41,0.00026027,4]
[366810169,1750467075839,-490.0,0.00026027,4]
[366810170,1750467075850,-490.0,0.00026027,4]
[366810171,1750467075859,-1625.6,0.00026027,4]
[366810172,1750467075870,-490.0,0.00026027,4]
[366810173,1750467075880,-490.0,0.00026027,4]
[366810174,1750467075890,-490.0,0.00026027,4]
[366810175,1750467075900,-345.39,0.00026027,4]
[366810176,1750467075909,-490.0,0.00026027,4]
[366810177,1750467075919,-875.48,0.00026027,4]
[366810178,1750467075928,-513.0,0.00026027,4]
[366810179,1750467075938,-2895.02,0.00026027,4]
[366810180,1750467075947,-490.0,0.00026027,4]
[366810181,1750467075957,-490.0,0.00026027,4]
[366810182,1750467075966,-490.0,0.00026027,4]
[366810183,1750467075976,-1070.55,0.00026027,4]
[366810184,1750467075998,-490.0,0.00026027,4]
[366810185,1750467076009,-490.0,0.00026027,4]
[366810186,1750467076020,-490.0,0.00026027,4]
[366810187,1750467076030,-490.0,0.00026027,4]
[366810188,1750467076040,-1435.61,0.00026027,4]
[366810189,1750467076052,-490.0,0.00026027,4]
[366810190,1750467076062,-874.16,0.00026027,4]
[366810191,1750467076072,-478.5083461,0.00026027,4]
[366810192,1750467076083,-580.31,0.00026027,4]
[366810193,1750467076092,-630.58,0.00026027,4]
[366810194,1750467076102,-490.0,0.00026027,4]
[366810195,1750467076113,-490.0,0.00026027,4]
[366810196,1750467076124,-490.0,0.00026027,4]
[366810197,1750467076134,-2562.11,0.00026027,2]
[366810198,1750467076144,-490.0,0.00026027,4]
[366810199,1750467076155,-490.0,0.00026027,4]
[366810200,1750467076166,-490.0,0.00026027,4]
[366810201,1750467076176,-490.0,0.00026027,4]
[366810202,1750467076186,-1288.18,0.00026027,4]
[366810203,1750467076196,-490.0,0.00026027,4]
[366810204,1750467076206,-490.0,0.00026027,4]
[366810205,1750467076216,-490.0,0.00026027,4]
[366810206,1750467076226,-490.0,0.00026027,4]
[366810207,1750467076235,-490.0,0.00026027,4]
[366810208,1750467076245,-817.53,0.00026027,4]
[366810209,1750467076256,-490.0,0.00026027,4]
[366810210,1750467076266,-490.0,0.00026027,4]
[366810211,1750467076276,-490.0,0.00026027,4]
[366810212,1750467076286,-490.0,0.00026027,4]
[366810213,1750467076300,-490.0,0.00026027,4]
[366810214,1750467076310,-1310.38,0.00026027,2]
[366810215,1750467076320,-490.0,0.00026027,4]
[366810216,1750467076331,-395.04890558,0.00026027,4]
[366810217,1750467076343,-490.0,0.00026027,4]
[366810218,1750467076353,-1069.86,0.00026027,4]
[366810219,1750467076363,-490.0,0.00026027,4]
[366810220,1750467076374,-490.0,0.00026027,4]
[366810221,1750467076384,-490.0,0.00026027,4]
[366810222,1750467076394,-201.94,0.00026027,4]
[366810223,1750467076668,-490.0,0.00026027,4]
[366810224,1750467076679,-490.0,0.00026027,4]
[366810225,1750467076690,-490.0,0.00026027,4]
[366810226,1750467076700,-490.0,0.00026027,4]
[366810227,1750467076710,-490.0,0.00026027,4]
[366810228,1750467076720,-490.0,0.00026027,4]
[366810229,1750467076730,-525.89,0.00026027,4]
[366810230,1750467076740,-490.0,0.00026027,4]
[366810231,1750467076750,-622.86,0.00026027,4]
[366810232,1750467076760,-800.28,0.00026027,4]
[366810233,1750467076771,-151.0,0.00026068,7]
[366810234,1750467076782,-151.0,0.00026068,7]
[366810235,1750467076792,-254.117713,0.00026068,7]
[366810236,1750467076808,-1423.75419219,0.00026068,2]
[366810237,1750467076820,-1500.0,0.00026068,2]
[366810238,1750467076830,-1500.0,0.00026068,2]
[366810239,1750467076840,-1500.0,0.00026068,2]
[366810240,1750467076850,-540.4199001,0.00026068,2]
[366810241,1750467076860,-200.0,0.00026069,2]
[366810242,1750467076870,-1808.26537402,0.0002607,2]
[366810243,1750467076880,-2000.0,0.00026118,60]
[366810244,1750467076890,-500.0,0.00026118,120]
[366810245,1750467076900,-151.0,0.00026121,7]
[366810246,1750467076910,-202.0,0.00026133,15]
[366810247,1750467076920,-151.0,0.00026162,7]
[366810248,1750467076930,-151.0,0.00026162,7]
[366810249,1750467076940,-169.551605,0.00026162,7]
[366810250,1750467076951,-169.551605,0.00026162,7]
[366810251,1750467076961,-660.470074,0.00026162,7]
[366810252,1750467076971,-326.462005,0.00026162,7]
[366810253,1750467076982,-326.462005,0.00026162,7]
[366810254,1750467076992,-292.079556,0.00026162,7]
[366810255,1750467077002,-151.0,0.00026162,7]
[366810256,1750467077012,-165.24,0.00026178,2]
[366810257,1750467077021,-386.59388141,0.0002618,2]
[366810258,1750467077031,-348.9005264,0.0002618,2]
[366810259,1750467077042,-5896.53743347,0.0002618,2]
[366810260,1750467077052,-20995.96191602,0.0002618,2]
[366810261,1750467077062,-159.31357109,0.0002618,2]
[366810262,1750467077072,-211.44158444,0.0002618,2]
[366810263,1750467077082,-3322.01261887,0.00026195,2]
[366810264,1750467077093,-1406.95,0.00026199,4]
[366810265,1750467077103,-5000.0,0.000262,5]
[366810266,1750467077113,-5000.0,0.000262,6]
[366810267,1750467077123,-5000.0,0.000262,7]
[366810268,1750467077133,-5000.0,0.000262,8]
[366810269,1750467077143,-5000.0,0.000262,9]
[366810270,1750467077153,-5000.0,0.000262,21]
[366810271,1750467077163,-2000.0,0.000262,2]
[366810272,1750467077173,-151.0,0.000262,7]
[366810273,1750467077183,-20074.92714742,0.000262,5]
[366810274,1750467077193,-200.0,0.000262,2]
[366810275,1750467077204,-152.0,0.00026206,9]
[366810276,1750467077214,-2091.575533,0.0002621,2]
[366810277,1750467077224,-1000.0,0.00026232,2]
[366810278,1750467077234,-20057.6809742,0.00026262,2]
[366810279,1750467077250,-280.11,0.00026269,2]
[366810280,1750467077260,-1000.0,0.0002627,2]
[366810281,1750467077270,-500.0,0.0002627,2]
[366810282,1750467077280,-600.0,0.0002627,2]
[366810283,1750467077291,-1000.0,0.0002627,2]
[366810284,1750467077302,-1000.0,0.0002627,2]
[366810285,1750467077312,-151.0,0.0002627,7]
[366810286,1750467077323,-206.24513,0.0002627,7]
[366810287,1750467077332,-206.24513,0.0002627,7]
[366810288,1750467077342,-466.108384,0.0002627,7]
[366810289,1750467077352,-466.108384,0.0002627,7]
[366810290,1750467077362,-227.006127,0.0002627,7]
[366810291,1750467077372,-500.0,0.0002627,2]
[366810292,1750467077383,-1000.0,0.0002627,2]
[366810293,1750467077393,-227.006127,0.0002627,7]
[366810294,1750467077403,-185.856239,0.0002627,7]
[366810295,1750467077414,-1406.95,0.00026279,4]
[366810296,1750467077424,-271184.72708958,0.0002628,2]
[366810297,1750467077434,-151.0,0.0002628,7]
[366810298,1750467077445,-199.50433,0.0002628,7]
[366810299,1750467077455,-151.0,0.0002628,7]
[366810300,1750467077466,-231.764256,0.0002628,7]
[366810301,1750467077476,-231.764256,0.0002628,7]
[366810302,1750467077487,-227.006127,0.0002628,7]
[366810303,1750467077498,-227.006127,0.0002628,7]
[366810304,1750467077508,-155.886971,0.0002628,7]
[366810305,1750467077518,-155.886971,0.0002628,7]
[366810306,1750467077529,-208.756452,0.0002628,7]
[366810307,1750467077539,-303.158107,0.0002628,7]
[366810308,1750467077549,-208.756452,0.0002628,7]
[366810309,1750467077559,-185.856239,0.0002628,7]
[366810310,1750467077570,-2110.0,0.0002628,2]
[366810311,1750467077580,-254.117713,0.00026281,7]
[366810312,1750467077590,-150.0,0.00026281,2]
[366810313,1750467077599,-151.0,0.00026282,7]
[366810314,1750467077609,-201.383832,0.00026282,7]
[366810315,1750467077620,-169.551605,0.00026282,7]
[366810316,1750467077630,-169.551605,0.00026282,7]
[366810317,1750467077641,-151.0,0.00026282,7]
[366810318,1750467077651,-660.470074,0.00026282,7]
[366810319,1750467077661,-151.0,0.00026282,7]
[366810320,1750467077671,-326.462005,0.00026282,7]
[366810321,1750467077681,-326.462005,0.00026282,7]
[366810322,1750467077692,-151.0,0.00026282,7]
[366810323,1750467077702,-1406.95,0.00026282,4]
[366810324,1750467077712,-151.0,0.000263,7]
[366810325,1750467077722,-17335.04,0.000263,2]
[366810326,1750467077733,-151.0,0.000263,7]
[366810327,1750467077742,-474.29813043,0.000263,4]
[366810328,1750467077752,-578.5291,0.000263,2]
[366810329,1750467077763,-1430.4314,0.000263,2]
[366810330,1750467077773,-1406.95,0.000263,4]
[366810331,1750467077783,-500.8041,0.000263,2]
[366810332,1750467077793,-3414.33,0.000263,2]
[366810333,1750467077804,-2168.4087,0.000263,2]
[366810334,1750467077814,-239.673524,0.00026301,7]
[366810335,1750467077824,-151.0,0.00026301,7]
[366810336,1750467077834,-151.0,0.00026301,7]
[366810337,1750467077844,-151.0,0.00026301,7]
[366810338,1750467077856,-254.117713,0.00026301,7]
[366810339,1750467077866,-264.008156,0.00026301,7]
[366810340,1750467077876,-206.24513,0.00026301,7]
[366810341,1750467077886,-206.24513,0.00026301,7]
[366810342,1750467077896,-490.0,0.00026301,4]
[366810343,1750467077906,-466.108384,0.00026301,7]
[366810344,1750467077916,-466.108384,0.00026301,7]
[366810345,1750467077926,-227.006127,0.00026301,7]
[366810346,1750467077937,-227.006127,0.00026301,7]
[366810347,1750467077947,-490.0,0.00026301,4]
[366810348,1750467077956,-490.0,0.00026301,4]
[366810349,1750467077966,-490.0,0.00026301,4]
[366810350,1750467077976,-490.0,0.00026301,4]
[366810351,1750467077986,-490.0,0.00026301,4]
[366810352,1750467077996,-490.0,0.00026301,4]
[366810353,1750467078006,-513.35,0.00026301,4]
[366810354,1750467078016,-490.0,0.00026301,4]
[366810355,1750467078027,-490.0,0.00026301,4]
[366810356,1750467078036,-490.0,0.00026301,4]
[366810357,1750467078046,-490.0,0.00026301,4]
[366810358,1750467078056,-490.0,0.00026301,4]
[366810359,1750467078066,-490.0,0.00026301,4]
[366810360,1750467078076,-490.0,0.00026301,4]
[366810361,1750467078085,-490.0,0.00026301,4]
[366810362,1750467078095,-490.0,0.00026301,4]
[366810363,1750467078106,-518.55949765,0.00026301,4]
[366810364,1750467078116,-490.0,0.00026301,4]
[366810365,1750467078127,-499.03,0.00026301,4]
[366810366,1750467078137,-490.0,0.00026301,4]
[366810367,1750467078147,-490.0,0.00026301,4]
[366810368,1750467078158,-490.0,0.00026301,4]